fUST/lending_fUST_20250610
["ID","MTS","AMOUNT","RATE_DAILY","PERIOD"]
[365152273,1749497443923,-460.0,0.00023013,4]
[365152274,1749497443933,-473.64,0.00023013,4]
[365152275,1749497443943,-175.2,0.00023013,4]
[365152276,1749497443953,-460.0,0.00023013,4]
[365152277,1749497443962,-830.93,0.00023013,4]
[365152278,1749497443972,-460.0,0.00023013,4]
[365152279,1749497443982,-460.0,0.00023013,4]
[365152280,1749497443992,-488.84,0.00023013,4]
[365152281,1749497444002,-891.97,0.00023013,4]
[365152282,1749497444012,-460.0,0.00023013,4]
[365152283,1749497444021,-460.0,0.00023013,4]
[365152284,1749497444032,-1029.47,0.00023013,4]
[365152285,1749497444041,-716.0,0.00023013,4]
[365152286,1749497444051,-460.0,0.00023013,4]
[365152287,1749497444060,-460.0,0.00023013,4]
[365152288,1749497444070,-460.0,0.00023013,4]
[365152289,1749497444079,-1748.93,0.00023013,4]
[365152290,1749497444089,-460.0,0.00023013,4]
[365152291,1749497444099,-586.63,0.00023013,4]
[365152292,1749497444109,-460.0,0.00023013,4]
[365152293,1749497444119,-460.0,0.00023013,4]
[365152294,1749497444129,-2474.31,0.00023013,4]
[365152295,1749497444139,-460.0,0.00023013,4]
[365152296,1749497444149,-1894.48,0.00023013,4]
[365152297,1749497444159,-463.63,0.00023013,4]
[365152298,1749497444169,-1819.94,0.00023013,4]
[365152299,1749497444179,-12505.33,0.00023013,4]
[365152300,1749497444192,-508.34,0.00023013,4]
[365152301,1749497444202,-460.0,0.00023013,4]
[365152302,1749497444211,-491.64,0.00023013,4]
[365152303,1749497444221,-1002.99,0.00023013,4]
[365152304,1749497444231,-1877.47,0.00023013,4]
[365152305,1749497444240,-893.1,0.00023013,4]
[365152306,1749497444249,-500.0,0.00023033,2]
[365152307,1749497444258,-500.0,0.00023033,2]
[365152308,1749497444268,-500.0,0.00023033,2]
[365152309,1749497444277,-500.0,0.00023036,2]
[365152310,1749497444287,-500.0,0.00023036,2]
[365152311,1749497444296,-2041.55227358,0.00023038,8]
[365152312,1749497444306,-500.40612455,0.00023039,2]
[365152313,1749497444315,-501.09580603,0.0002306,2]
[365152314,1749497444325,-500.0,0.0002306,2]
[365152315,1749497444334,-2041.55227358,0.00023141,8]
[365152316,1749497444344,-2160.0,0.00023154,2]
[365152317,1749497444353,-653.0,0.00023154,2]
[365152318,1749497444363,-287.741,0.00023154,2]
[365152319,1749497444373,-405.0,0.00023154,2]
[365152320,1749497444383,-963.0,0.00023154,2]
[365152321,1749497444392,-2952.7664824,0.00023195,2]
[365152322,1749497444403,-2041.55227358,0.00023245,8]
[365152323,1749497444412,-1000.0,0.0002326,2]
[365152324,1749497444423,-1000.0,0.0002326,2]
[365152325,1749497444433,-1000.0,0.0002326,2]
[365152326,1749497444443,-1000.0,0.0002326,2]
[365152327,1749497444452,-1000.0,0.0002326,2]
[365152328,1749497444462,-1000.0,0.0002326,2]
[365152329,1749497444472,-1000.0,0.0002326,2]
[365152330,1749497444482,-1000.0,0.0002326,2]
[365152331,1749497444491,-1000.0,0.0002326,2]
[365152332,1749497444501,-1000.0,0.0002326,2]
[365152333,1749497444511,-1000.0,0.0002326,2]
[365152334,1749497444521,-1000.0,0.0002326,2]
[365152335,1749497444530,-1000.0,0.0002326,2]
[365152336,1749497444540,-1000.0,0.0002326,2]
[365152337,1749497444552,-1000.0,0.0002326,2]
[365152338,1749497444561,-1000.0,0.0002326,2]
[365152339,1749497444571,-1000.0,0.0002326,2]
[365152340,1749497444580,-1000.0,0.0002326,2]
[365152341,1749497444590,-1000.0,0.0002326,2]
[365152342,1749497444599,-437.03958727,0.0002326,2]
[365152343,1749497444609,-151.0,0.00023287,7]
[365152344,1749497444619,-179.463166,0.00023287,7]
[365152345,1749497444628,-179.463166,0.00023287,7]
[365152346,1749497444637,-542.9,0.00023287,4]
[365152347,1749497444646,-460.0,0.00023287,4]
[365152348,1749497444656,-925.85,0.00023287,4]
[365152349,1749497444665,-1274.13,0.00023287,4]
[365152350,1749497444675,-1272.51,0.00023287,4]
[365152351,1749497444686,-1815.55,0.00023287,4]
[365152352,1749497444695,-550.96944795,0.00023287,4]
[365152353,1749497444704,-473.64,0.00023287,4]
[365152354,1749497444714,-460.0,0.00023287,4]
[365152355,1749497444723,-830.93,0.00023287,4]
[365152356,1749497444736,-460.0,0.00023287,4]
[365152357,1749497444745,-460.0,0.00023287,4]
[365152358,1749497444755,-488.84,0.00023287,4]
[365152359,1749497444765,-891.97,0.00023287,4]
[365152360,1749497444775,-460.0,0.00023287,4]
[365152361,1749497444785,-460.0,0.00023287,4]
[365152362,1749497444794,-1029.47,0.00023287,4]
[365152363,1749497444805,-716.0,0.00023287,4]
[365152364,1749497444815,-460.0,0.00023287,4]
[365152365,1749497444824,-460.0,0.00023287,4]
[365152366,1749497444834,-460.0,0.00023287,4]
[365152367,1749497444843,-1748.93,0.00023287,4]
[365152368,1749497444853,-460.0,0.00023287,4]
[365152369,1749497444862,-586.63,0.00023287,4]
[365152370,1749497444871,-460.0,0.00023287,4]
[365152371,1749497444881,-460.0,0.00023287,4]
[365152372,1749497444892,-2474.31,0.00023287,4]
[365152373,1749497444902,-460.0,0.00023287,4]
[365152374,1749497444911,-1894.48,0.00023287,4]
[365152375,1749497444921,-463.63,0.00023287,4]
[365152376,1749497444931,-1819.94,0.00023287,4]
[365152377,1749497444941,-12505.33,0.00023287,4]
[365152378,1749497444951,-508.34,0.00023287,4]
[365152379,1749497444961,-460.0,0.00023287,4]
[365152380,1749497444971,-491.64,0.00023287,4]
[365152381,1749497444981,-1002.99,0.00023287,4]
[365152382,1749497444991,-1877.47,0.00023287,4]
[365152383,1749497445001,-893.1,0.00023287,4]
[365152384,1749497445010,-151.0,0.00023348,7]
[365152385,1749497445020,-151.0,0.00023348,7]
[365152386,1749497445030,-151.0,0.00023348,7]
[365152387,1749497445040,-151.0,0.00023348,7]
[365152388,1749497445051,-151.0,0.00023348,7]
[365152389,1749497445066,-151.0,0.00023348,7]
[365152390,1749497445076,-2041.55227358,0.00023348,9]
[365152391,1749497445086,-160.0,0.00023409,4]
[365152392,1749497445095,-3198.81,0.0002342,2]
[365152393,1749497445105,-1000.0,0.00023421,2]
[365152394,1749497445115,-1200.0,0.00023421,2]
[365152395,1749497445125,-500.0,0.0002344,2]
[365152396,1749497445137,-2041.55227358,0.00023452,9]
[365152397,1749497445147,-877.41,0.000235,7]
[365152398,1749497445156,-872.35041136,0.000235,2]
[365152399,1749497445166,-822.239985,0.0002352,3]
[365152400,1749497445175,-215.0738,0.0002354,2]
[365152401,1749497445185,-500.40612455,0.0002355,2]
[365152402,1749497445195,-2041.55227358,0.00023555,9]
[365152403,1749497445205,-542.9,0.00023561,4]
[365152404,1749497445215,-460.0,0.00023561,4]
[365152405,1749497445225,-200.0,0.00023561,4]
[365152406,1749497445234,-150.61138,0.00023561,4]
[365152407,1749497445243,-925.85,0.00023561,4]
[365152408,1749497445253,-1274.13,0.00023561,4]
[365152409,1749497445264,-1272.51,0.00023561,4]
[365152410,1749497445273,-1815.55,0.00023561,4]
[365152411,1749497445283,-473.64,0.00023561,4]
[365152412,1749497445292,-460.0,0.00023561,4]
[365152413,1749497445301,-830.93,0.00023561,4]
[365152414,1749497445311,-460.0,0.00023561,4]
[365152415,1749497445320,-460.0,0.00023561,4]
[365152416,1749497445331,-488.84,0.00023561,4]
[365152417,1749497445341,-891.97,0.00023561,4]
[365152418,1749497445433,-460.0,0.00023561,4]
[365152419,1749497445443,-193.71447671,0.00023561,4]
[365152420,1749497445453,-1029.47,0.00023561,4]
[365152421,1749497445462,-716.0,0.00023561,4]
[365152422,1749497445471,-460.0,0.00023561,4]
[365152423,1749497445481,-460.0,0.00023561,4]
[365152424,1749497445490,-575.01405744,0.00023561,4]
[365152425,1749497445500,-1748.93,0.00023561,4]
[365152426,1749497445509,-460.0,0.00023561,4]
[365152427,1749497445518,-151.0,0.00023561,7]
[365152428,1749497445529,-151.0,0.00023561,7]
[365152429,1749497445539,-586.63,0.00023561,4]
[365152430,1749497445549,-460.0,0.00023561,4]
[365152431,1749497445558,-460.0,0.00023561,4]
[365152432,1749497445567,-2474.31,0.00023561,4]
[365152433,1749497445579,-460.0,0.00023561,4]
[365152434,1749497445590,-1894.48,0.00023561,4]
[365152435,1749497445600,-463.63,0.00023561,4]
[365152436,1749497445612,-1819.94,0.00023561,4]
[365152437,1749497445622,-322.85966229,0.00023561,4]
[365152439,1749497445740,-723.21099013,0.00021954,2]
[365152440,1749497445750,-591.45963575,0.00022365,2]
[365152441,1749497445779,-131.75135438,0.00022365,2]
[365152443,1749497445789,-160.0,0.00022634,2]
[365152444,1749497445798,-723.21099013,0.00022776,2]
[365152446,1749497445810,-6704.50284969,0.00023561,4]
[365152448,1749497445822,-5477.96748802,0.00023561,4]
[365152450,1749497445832,-508.34,0.00023561,4]
[365152452,1749497445842,-460.0,0.00023561,4]
[365152454,1749497445852,-491.64,0.00023561,4]
[365152456,1749497445861,-1002.99,0.00023561,4]
[365152458,1749497445871,-1877.47,0.00023561,4]
[365152459,1749497445880,-893.1,0.00023561,4]
[365152461,1749497445890,-1000.0,0.00023581,2]
[365152463,1749497445899,-500.0,0.00023584,2]
[365152465,1749497445908,-503.2118004,0.00023584,2]
[365152467,1749497445918,-151.0,0.000236,9]
[365152468,1749497445927,-886.0,0.000236,2]
[365152470,1749497445939,-1000.0,0.00023608,2]
[365152472,1749497445950,-2041.55227358,0.00023659,9]
[365152474,1749497445959,-151.0,0.0002366,7]
[365152476,1749497445969,-179.463166,0.0002366,7]
[365152478,1749497445979,-179.463166,0.0002366,7]
[365152480,1749497445989,-189.4970927,0.00023726,2]
[365152481,1749497445999,-2041.55227358,0.00023762,9]
[365152482,1749497446009,-316.0,0.00023769,3]
[365152483,1749497446019,-321.66125563,0.00023769,3]
[365152484,1749497446029,-25883.25661757,0.0002378,5]
[365152485,1749497446038,-35277.61906229,0.00023788,2]
[365152486,1749497446048,-2680.92,0.000238,2]
[365152487,1749497446058,-500.0,0.000238,9]
[365152488,1749497446068,-500.0,0.000238,9]
[365152489,1749497446077,-200.0,0.0002382,9]
[365152490,1749497446087,-542.9,0.00023835,4]
[365152491,1749497446096,-460.0,0.00023835,4]
[365152492,1749497446107,-151.0,0.00023835,7]
[365152493,1749497446117,-925.85,0.00023835,4]
[365152494,1749497446126,-1274.13,0.00023835,4]
[365152495,1749497446135,-1272.51,0.00023835,4]
[365152496,1749497446145,-1815.55,0.00023835,4]
[365152497,1749497446154,-473.64,0.00023835,4]
[365152498,1749497446164,-460.0,0.00023835,4]
[365152499,1749497446173,-830.93,0.00023835,4]
[365152500,1749497446185,-460.0,0.00023835,4]
[365152501,1749497446195,-460.0,0.00023835,4]
[365152502,1749497446205,-488.84,0.00023835,4]
[365152503,1749497446214,-891.97,0.00023835,4]
[365152504,1749497446223,-460.0,0.00023835,4]
[365152505,1749497446233,-1029.47,0.00023835,4]
[365152506,1749497446243,-716.0,0.00023835,4]
[365152507,1749497446252,-460.0,0.00023835,4]
[365152508,1749497446262,-460.0,0.00023835,4]
[365152509,1749497446271,-1748.93,0.00023835,4]
[365152510,1749497446281,-460.0,0.00023835,4]
[365152511,1749497446290,-586.63,0.00023835,4]
[365152512,1749497446301,-460.0,0.00023835,4]
[365152513,1749497446317,-460.0,0.00023835,4]
[365152514,1749497446331,-424.24201759,0.00023835,4]
[365152515,1749497446484,-723.21099013,0.00023187,2]
[365152516,1749497446498,-2050.06798241,0.00023835,4]
[365152517,1749497446511,-460.0,0.00023835,4]
[365152518,1749497446523,-1894.48,0.00023835,4]
[365152519,1749497446537,-463.63,0.00023835,4]
[365152520,1749497446551,-1819.94,0.00023835,4]
[365152521,1749497446562,-12505.33,0.00023835,4]
[365152522,1749497446574,-508.34,0.00023835,4]
[365152523,1749497446585,-460.0,0.00023835,4]
[365152524,1749497446597,-491.64,0.00023835,4]
[365152525,1749497446610,-1002.99,0.00023835,4]
[365152526,1749497446622,-1877.47,0.00023835,4]
[365152527,1749497446635,-893.1,0.00023835,4]
[365152528,1749497446648,-2041.55227358,0.00023866,10]
[365152529,1749497446662,-16610.37,0.00023868,10]
[365152530,1749497446676,-1004.57525812,0.0002388,2]
[365152531,1749497446691,-151.0,0.000239,9]
[365152532,1749497446704,-150.0,0.000239,2]
[365152533,1749497446715,-1999.83,0.000239,7]
[365152534,1749497446726,-6335.999999,0.00023912,7]
[365152535,1749497446739,-157.623128,0.00023922,3]
[365152536,1749497446751,-1500.0,0.00023968,2]
[365152537,1749497446766,-1800.0,0.00023968,2]
[365152538,1749497446790,-2041.55227358,0.00023969,10]
[365152539,1749497446802,-500.0,0.00023973,2]
[365152540,1749497446815,-500.0,0.00023973,2]
[365152541,1749497446827,-500.0,0.00023973,2]
[365152542,1749497446840,-500.0,0.00023973,2]
[365152543,1749497446853,-500.0,0.00023973,2]
[365152544,1749497446866,-151.0,0.00023973,7]
[365152545,1749497446878,-151.0,0.00023973,7]
[365152546,1749497446890,-6082.99604626,0.00024,2]
[365152620,1749497594698,2230.55469528,0.00024657,120]
[365152625,1749498105498,166.098874,0.00013699,2]
[365152653,1749498632238,-179.83814567,0.0001938,2]
[365152654,1749498632252,-884.1308203,0.00020163,2]
[365152655,1749498632262,-774.37,0.00020469,2]
[365152656,1749498632272,-558.48549187,0.00021039,2]
[365152657,1749498632282,-500.0,0.00021094,2]
[365152658,1749498632292,-266.145,0.00021094,2]
[365152659,1749498632302,-300.0,0.00021094,2]
[365152660,1749498632311,-440.0,0.00021095,4]
[365152661,1749498632322,-440.0,0.00021095,4]
[365152662,1749498632333,-584.39130876,0.00021095,4]
[365152663,1749498632343,-430.0,0.00021095,4]
[365152664,1749498632352,-430.0,0.00021095,4]
[365152665,1749498632363,-430.0,0.00021095,4]
[365152666,1749498632373,-420.0,0.00021095,4]
[365152667,1749498632382,-430.0,0.00021095,4]
[365152668,1749498632392,-430.0,0.00021095,4]
[365152670,1749498632405,-430.0,0.00021095,4]
[365152671,1749498632414,-430.0,0.00021095,4]
[365152673,1749498632424,-516.22711881,0.00021095,4]
[365152675,1749498632433,-319.96834035,0.00021095,4]
[365152677,1749498632443,-430.0,0.00021095,4]
[365152679,1749498632452,-460.0,0.00021095,4]
[365152680,1749498632462,-460.0,0.00021095,4]
[365152681,1749498632471,-460.0,0.00021095,4]
[365152682,1749498632480,-390.0,0.00021095,4]
[365152683,1749498632489,-370.0,0.00021095,4]
[365152684,1749498632498,-460.0,0.00021095,2]
[365152685,1749498632507,-460.0,0.00021095,4]
[365152687,1749498632517,-440.0,0.00021095,4]
[365152689,1749498632527,-460.0,0.00021095,4]
[365152691,1749498632537,-256.79469458,0.00021095,4]
[365152693,1749498632546,-151.0,0.00021095,4]
[365152695,1749498632556,-272.47906745,0.00021095,4]
[365152697,1749498632565,-460.0,0.00021095,4]
[365152699,1749498632575,-430.0,0.00021095,4]
[365152701,1749498632585,-430.0,0.00021095,4]
[365152703,1749498632595,-430.0,0.00021095,4]
[365152705,1749498632604,-430.0,0.00021095,4]
[365152706,1749498632614,-404.81318171,0.00021095,4]
[365152707,1749498632625,-430.0,0.00021095,4]
[365152708,1749498632634,-291.18017293,0.00021095,4]
[365152709,1749498632643,-430.0,0.00021095,4]
[365152710,1749498632653,-460.0,0.00021095,4]
[365152711,1749498632664,-430.0,0.00021095,4]
[365152712,1749498632673,-430.0,0.00021095,4]
[365152713,1749498632683,-430.0,0.00021095,4]
[365152714,1749498632692,-460.0,0.00021095,4]
[365152715,1749498632703,-1012.85984742,0.00021095,4]
[365152716,1749498632712,-365.81082074,0.00021095,4]
[365152717,1749498632722,-430.0,0.00021095,4]
[365152718,1749498632732,-430.0,0.00021095,4]
[365152719,1749498632741,-458.66202153,0.00021095,4]
[365152720,1749498632751,-430.0,0.00021095,4]
[365152721,1749498632761,-513.0212566,0.00021095,4]
[365152722,1749498632770,-460.0,0.00021095,4]
[365152723,1749498632780,-460.0,0.00021095,4]
[365152724,1749498632791,-460.0,0.00021095,4]
[365152725,1749498632801,-503.9,0.00021095,4]
[365152726,1749498632810,-460.0,0.00021095,4]
[365152727,1749498632820,-420.0,0.00021095,4]
[365152728,1749498632830,-460.0,0.00021095,4]
[365152729,1749498632839,-460.0,0.00021095,4]
[365152730,1749498632848,-460.0,0.00021095,4]
[365152731,1749498632858,-440.0,0.00021095,4]
[365152732,1749498632869,-330.0,0.00021095,4]
[365152733,1749498632879,-430.0,0.00021095,4]
[365152734,1749498632889,-460.0,0.00021095,4]
[365152735,1749498632899,-430.0,0.00021095,4]
[365152736,1749498632908,-1022.01,0.00021095,4]
[365152737,1749498632918,-1579.35,0.00021095,4]
[365152738,1749498632928,-460.0,0.00021095,4]
[365152739,1749498632938,-1257.22,0.00021095,4]
[365152740,1749498632948,-582.38,0.00021095,4]
[365152741,1749498632958,-460.0,0.00021095,4]
[365152742,1749498632967,-460.0,0.00021095,4]
[365152743,1749498632978,-460.0,0.00021095,4]
[365152744,1749498632988,-460.0,0.00021095,4]
[365152745,1749498632997,-460.0,0.00021095,4]
[365152746,1749498633007,-593.84600202,0.00021095,4]
[365152747,1749498633017,-460.0,0.00021095,4]
[365152748,1749498633026,-1377.98,0.00021095,4]
[365152749,1749498633038,-440.0,0.00021095,4]
[365152750,1749498633048,-440.0,0.00021095,4]
[365152751,1749498633058,-668.98,0.00021095,4]
[365152752,1749498633068,-460.0,0.00021095,4]
[365152753,1749498633077,-460.0,0.00021095,4]
[365152754,1749498633087,-460.0,0.00021095,4]
[365152755,1749498633098,-460.0,0.00021095,4]
[365152756,1749498633109,-440.0,0.00021095,4]
[365152757,1749498633119,-460.0,0.00021095,4]
[365152758,1749498633129,-460.0,0.00021095,4]
[365152759,1749498633140,-460.0,0.00021095,4]
[365152760,1749498633150,-1453.8,0.00021095,4]
[365152761,1749498633161,-10022.59,0.00021095,4]
[365152762,1749498633174,-460.0,0.00021095,4]
[365152763,1749498633184,-460.0,0.00021095,4]
[365152764,1749498633194,-632.61,0.00021095,4]
[365152765,1749498633205,-1517.16,0.00021095,4]
[365152766,1749498633216,-432.13598396,0.00021095,4]
[365152767,1749498633227,-430.0,0.00021095,4]
[365152768,1749498633238,-460.0,0.00021095,4]
[365152769,1749498633249,-460.0,0.00021095,4]
[365152770,1749498633260,-1447.19,0.00021095,4]
[365152771,1749498633271,-674.15,0.00021368,4]
[365152772,1749498633281,-460.0,0.00021368,4]
[365152773,1749498633292,-460.0,0.00021368,4]
[365152774,1749498633302,-596.62,0.00021368,4]
[365152775,1749498633312,-537.0,0.00021368,4]
[365152776,1749498633322,-885.92,0.00021368,4]
[365152777,1749498633332,-460.0,0.00021368,4]
[365152778,1749498633342,-458.97362265,0.00021368,2]
[365152779,1749498633352,-395.58845462,0.00021368,2]
[365152780,1749498633363,-2130.73,0.00021368,4]
[365152781,1749498633373,-747.12,0.00021368,4]
[365152782,1749498633383,-460.0,0.00021369,4]
[365152783,1749498633394,-357.85464959,0.00021369,4]
[365152784,1749498633404,-460.0,0.00021369,4]
[365152785,1749498633414,-460.0,0.00021369,2]
[365152786,1749498633424,-460.0,0.00021369,4]
[365152787,1749498633435,-460.0,0.00021369,4]
[365152788,1749498633445,-584.74404832,0.00021369,4]
[365152789,1749498633455,-460.0,0.00021369,4]
[365152790,1749498633466,-460.0,0.00021369,4]
[365152791,1749498633476,-460.0,0.00021369,4]
[365152792,1749498633487,-310.0427032,0.00021369,4]
[365152793,1749498633497,-391.40575744,0.00021369,4]
[365152794,1749498633507,-460.0,0.00021369,4]
[365152795,1749498633517,-420.0,0.00021369,4]
[365152796,1749498633526,-1022.01,0.00021369,4]
[365152797,1749498633536,-1579.35,0.00021369,4]
[365152798,1749498633546,-460.0,0.00021369,4]
[365152799,1749498633556,-1257.22,0.00021369,4]
[365152800,1749498633566,-582.38,0.00021369,4]
[365152801,1749498633576,-460.0,0.00021369,4]
[365152802,1749498633586,-460.0,0.00021369,4]
[365152803,1749498633596,-206.86,0.00021369,4]
[365152804,1749498633607,-460.0,0.00021369,4]
[365152805,1749498633617,-460.0,0.00021369,4]
[365152806,1749498633627,-460.0,0.00021369,4]
[365152807,1749498633637,-1377.98,0.00021369,4]
[365152808,1749498633647,-668.98,0.00021369,4]
[365152809,1749498633657,-460.0,0.00021369,4]
[365152810,1749498633667,-460.0,0.00021369,4]
[365152811,1749498633677,-460.0,0.00021369,4]
[365152812,1749498633687,-201.01,0.00021369,4]
[365152813,1749498633696,-460.0,0.00021369,4]
[365152814,1749498633706,-460.0,0.00021369,4]
[365152815,1749498633715,-460.0,0.00021369,4]
[365152816,1749498633725,-1453.8,0.00021369,4]
[365152817,1749498633735,-10022.59,0.00021369,4]
[365152818,1749498633753,-460.0,0.00021369,4]
[365152819,1749498633766,-460.0,0.00021369,4]
[365152820,1749498633776,-632.61,0.00021369,4]
[365152821,1749498633787,-1517.16,0.00021369,4]
[365152822,1749498633797,-460.0,0.00021369,4]
[365152823,1749498633807,-460.0,0.00021369,4]
[365152824,1749498633817,-1447.19,0.00021369,4]
[365152825,1749498633827,-1548.74,0.00021443,2]
[365152826,1749498633837,-674.15,0.00021642,4]
[365152827,1749498633848,-460.0,0.00021642,4]
[365152828,1749498633858,-460.0,0.00021642,4]
[365152829,1749498633869,-596.62,0.00021642,4]
[365152830,1749498633879,-537.0,0.00021642,4]
[365152831,1749498633889,-885.92,0.00021642,4]
[365152832,1749498633899,-460.0,0.00021642,4]
[365152833,1749498633909,-2130.73,0.00021642,4]
[365152834,1749498633919,-747.12,0.00021642,4]
[365152835,1749498633929,-460.0,0.00021643,4]
[365152836,1749498633939,-460.0,0.00021643,4]
[365152837,1749498633949,-460.0,0.00021643,2]
[365152838,1749498633959,-460.0,0.00021643,4]
[365152839,1749498633969,-460.0,0.00021643,4]
[365152840,1749498633979,-460.0,0.00021643,4]
[365152841,1749498633990,-460.0,0.00021643,4]
[365152842,1749498634000,-400.0,0.00021643,4]
[365152843,1749498634011,-400.0,0.00021643,4]
[365152844,1749498634021,-1022.01,0.00021643,4]
[365152845,1749498634031,-1579.35,0.00021643,4]
[365152846,1749498634043,-550.96944795,0.00021643,4]
[365152847,1749498634053,-1257.22,0.00021643,4]
[365152848,1749498634065,-582.38,0.00021643,4]
[365152849,1749498634076,-460.0,0.00021643,4]
[365152850,1749498634086,-460.0,0.00021643,4]
[365152851,1749498634097,-460.0,0.00021643,4]
[365152852,1749498634107,-460.0,0.00021643,4]
[365152853,1749498634118,-460.0,0.00021643,4]
[365152854,1749498634127,-1377.98,0.00021643,4]
[365152855,1749498634139,-668.98,0.00021643,4]
[365152856,1749498634149,-460.0,0.00021643,4]
[365152857,1749498634159,-460.0,0.00021643,4]
[365152858,1749498634172,-460.0,0.00021643,4]
[365152859,1749498634186,-460.0,0.00021643,4]
[365152860,1749498634197,-460.0,0.00021643,4]
[365152861,1749498634207,-460.0,0.00021643,4]
[365152862,1749498634219,-1453.8,0.00021643,4]
[365152863,1749498634229,-10022.59,0.00021643,4]
[365152864,1749498634240,-460.0,0.00021643,4]
[365152865,1749498634253,-460.0,0.00021643,4]
[365152866,1749498634264,-632.61,0.00021643,4]
[365152867,1749498634276,-1517.16,0.00021643,4]
[365152868,1749498634286,-460.0,0.00021643,4]
[365152869,1749498634297,-494.89813927,0.00021643,4]
[365152870,1749498634308,-1447.19,0.00021643,4]
[365152871,1749498634319,-16000.0,0.00021693,2]
[365152872,1749498634329,-2104.76790678,0.00021693,2]
[365152873,1749498634340,-160.0,0.00021707,2]
[365152874,1749498634350,-834.7738823,0.00021726,2]
[365152875,1749498634361,-160.0,0.00021726,2]
[365152876,1749498634372,-229.64266968,0.00021726,2]
[365152877,1749498634382,-424.05420114,0.00021726,2]
[365152878,1749498634392,-160.0,0.00021726,2]
[365152879,1749498634402,-842.5625,0.00021726,2]
[365152880,1749498634413,-213.08899333,0.00021726,2]
[365152881,1749498634423,-160.0,0.00021726,2]
[365152882,1749498634434,-160.0,0.00021726,2]
[365152883,1749498634443,-160.0,0.00021729,2]
[365152884,1749498634454,-320.83140063,0.00021735,2]
[365152885,1749498634463,-352.10244814,0.00021817,2]
[365152886,1749498634474,-1402.29153331,0.000219,6]
[365152887,1749498634484,-674.15,0.00021916,4]
[365152888,1749498634495,-460.0,0.00021916,4]
[365152889,1749498634504,-460.0,0.00021916,4]
[365152890,1749498634515,-596.62,0.00021916,4]
[365152891,1749498634525,-537.0,0.00021916,4]
[365152892,1749498634536,-885.92,0.00021916,4]
[365152893,1749498634545,-460.0,0.00021916,4]
[365152894,1749498634555,-2130.73,0.00021916,4]
[365152895,1749498634565,-747.12,0.00021916,4]
[365152896,1749498634575,-460.0,0.00021917,4]
[365152897,1749498634584,-460.0,0.00021917,4]
[365152898,1749498634594,-460.0,0.00021917,2]
[365152899,1749498634604,-460.0,0.00021917,4]
[365152900,1749498634614,-460.0,0.00021917,4]
[365152901,1749498634624,-460.0,0.00021917,4]
[365152902,1749498634634,-460.0,0.00021917,4]
[365152903,1749498634644,-1022.01,0.00021917,4]
[365152904,1749498634653,-1579.35,0.00021917,4]
[365152905,1749498634663,-1257.22,0.00021917,4]
[365152906,1749498634673,-582.38,0.00021917,4]
[365152907,1749498634682,-460.0,0.00021917,4]
[365152908,1749498634692,-460.0,0.00021917,4]
[365152909,1749498634702,-460.0,0.00021917,4]
[365152910,1749498634712,-460.0,0.00021917,4]